fUSD/lending_fUSD_20260421
["ID","MTS","AMOUNT","RATE_DAILY","PERIOD"]
[420933691,1776742241438,-182088.98195655,0.000107,2]
[420933692,1776742241468,-652.08200092,0.000107,2]
[420933693,1776742241485,-1360.95947265,0.000107,2]
[420933694,1776742241497,-3334.43555444,0.000107,2]
[420933706,1776742243354,-272.80675665,0.000107,2]
[420933707,1776742243464,-730.12479506,0.000107,2]
[420933708,1776742246309,-150.0,0.00010327,2]
[420933709,1776742246319,-228.76,0.00010627,2]
[420933710,1776742246329,-7144.33749705,0.000107,2]
[420933711,1776742246341,-6727.10023864,0.000107,2]
[420933712,1776742246420,-2000.0,0.000107,2]
[420933713,1776742246432,-812.37829096,0.000107,2]
[420933714,1776742246443,-646.0500007,0.000107,2]
[420933743,1776743432130,-300.0,9.627e-05,2]
[420933744,1776743432140,-1200.0,9.627e-05,2]
[420933745,1776743432150,-217.03856977,9.627e-05,2]
[420933746,1776743432236,-39.96143023,9.627e-05,2]
[420933747,1776743432247,-237.74678006,9.627e-05,2]
[420933748,1776743432344,-62.25321994,9.627e-05,2]
[420933749,1776743432354,-112801.66,9.628e-05,2]
[420933750,1776743432364,-434.59208331,9.628e-05,2]
[420933751,1776743432374,-167.42,9.638e-05,2]
[420933752,1776743432384,-200.0,9.657e-05,2]
[420933753,1776743432394,-500.0,9.68e-05,2]
[420933754,1776743432404,-1500.0,9.692e-05,2]
[420933755,1776743432414,-1601.38,9.828e-05,2]
[420933756,1776743432424,-2000.0,9.855e-05,2]
[420933757,1776743432433,-260.0,9.863e-05,2]
[420933759,1776743432444,-578.20924308,0.00010164,2]
[420933761,1776743432454,-320.22299895,0.00010498,2]
[420933763,1776743432463,-500.0,0.00010498,2]
[420933765,1776743432473,-500.0,0.00010498,2]
[420933767,1776743432482,-500.0,0.00010498,2]
[420933769,1776743432492,-500.0,0.00010498,2]
[420933771,1776743432502,-500.0,0.00010498,2]
[420933773,1776743432512,-165.52394141,0.00010498,2]
[420933775,1776743432522,-500.0,0.00010498,2]
[420933777,1776743432532,-451.31369625,0.00010498,2]
[420933779,1776743432541,-500.0,0.00010498,2]
[420933781,1776743432552,-500.0,0.00010498,2]
[420933782,1776743432562,-500.0,0.00010498,2]
[420933783,1776743432572,-500.0,0.00010498,2]
[420933784,1776743432582,-500.0,0.00010498,2]
[420933785,1776743432592,-500.0,0.00010498,2]
[420933786,1776743432602,-500.0,0.00010498,2]
[420933787,1776743432612,-500.0,0.00010498,2]
[420933788,1776743432622,-500.0,0.00010498,2]
[420933789,1776743432631,-500.0,0.00010498,2]
[420933790,1776743432642,-500.0,0.00010498,2]
[420933791,1776743432651,-500.0,0.00010498,2]
[420933792,1776743432661,-502.74187909,0.00010499,2]
[420933793,1776743432671,-2500.0,0.000105,2]
[420933794,1776743432681,-240.06555445,0.000105,2]
[420933795,1776743432691,-438.08327951,0.000105,2]
[420933796,1776743432702,-420.19078272,0.000105,2]
[420933797,1776743432712,-388.0705496,0.000105,2]
[420933798,1776743432722,-4156.5339,0.000105,2]
[420933799,1776743432732,-350.0,0.00010518,2]
[420933800,1776743432742,-566.0909985,0.00010573,2]
[420933801,1776743432751,-350.0,0.00010587,2]
[420933802,1776743432762,-420.0,0.00010589,2]
[420933803,1776743432771,-1680.0,0.00010589,2]
[420933804,1776743432782,-4784.99482182,0.0001059,2]
[420933805,1776743432791,-300.0,0.0001059,2]
[420933806,1776743432802,-250.0,0.00010591,2]
[420933807,1776743432812,-300.0,0.00010591,2]
[420933808,1776743432822,-721.12765535,0.00010594,2]
[420933809,1776743432832,-306.69213552,0.00010599,2]
[420933810,1776743432842,-500.0,0.00010599,2]
[420933811,1776743432852,-500.0,0.00010599,2]
[420933812,1776743432862,-500.0,0.00010599,2]
[420933813,1776743432872,-500.0,0.00010599,2]
[420933814,1776743432882,-500.0,0.00010599,2]
[420933815,1776743432892,-500.0,0.00010599,2]
[420933816,1776743432902,-500.0,0.00010599,2]
[420933817,1776743432911,-500.0,0.00010599,2]
[420933818,1776743432921,-500.0,0.00010599,2]
[420933819,1776743432931,-207.27899809,0.00010599,2]
[420933820,1776743432941,-553.01362061,0.00010599,2]
[420933821,1776743432951,-211.65,0.00010599,2]
[420933822,1776743432961,-2224.96,0.00010599,2]
[420933823,1776743432971,-163.632,0.00010599,2]
[420933824,1776743432981,-200.0,0.00010599,2]
[420933825,1776743432991,-128339.20207329,0.000106,2]
[420933826,1776743433005,-88105.3255665,0.000106,2]
[420933827,1776743433036,-500.0,0.00010498,2]
[420933828,1776743433046,-2007.7401103,0.000106,2]
[420933837,1776743438304,-500.0,0.00010498,2]
[420933838,1776743438313,-500.0,0.00010498,2]
[420933839,1776743438323,-500.0,0.00010498,2]
[420933840,1776743438332,-500.0,0.00010498,2]
[420933841,1776743438342,-500.0,0.00010498,2]
[420933842,1776743438351,-500.0,0.00010498,2]
[420933843,1776743438361,-500.0,0.00010498,2]
[420933844,1776743438370,-500.0,0.00010498,2]
[420933845,1776743438380,-500.0,0.00010498,2]
[420933846,1776743438389,-32906.45514991,0.000106,2]
[420933847,1776743438399,-14618.2072,0.000106,2]
[420933848,1776743438408,-12232.06079446,0.000106,2]
[420933849,1776743438419,-20310.0,0.000106,2]
[420933850,1776743438431,-545.70812032,0.000106,2]
[420933851,1776743438446,-252.43189963,0.000106,2]
[420933852,1776743438464,-713.71647197,0.000106,2]
[420933853,1776743438519,-10391.57037895,0.000106,2]
[420933854,1776743438573,-1800.69231806,0.000106,2]
[420933855,1776743438629,-1410.91019214,0.000106,2]
[420933856,1776743438641,-896.16431314,0.000106,2]
[420933972,1776743440633,-380.30947352,0.00010498,2]
[420933973,1776743440645,-119.69052648,0.00010498,2]
[420933974,1776743440655,-1182.5940015,0.00010598,2]
[420933975,1776743440665,-3230.40811339,0.000106,2]
[420933976,1776743440845,-3565.18647994,0.000106,2]
[420933977,1776743440898,-629.76856186,0.000106,2]
[420933978,1776743440910,-429.15000479,0.000106,2]
[420933981,1776743443259,-7434.32570017,0.000106,2]
[420933982,1776743443270,-4595.30451174,0.000106,2]
[420933997,1776743447467,-800.00006697,0.000106,2]
[420933998,1776743447478,-454.49364755,0.000106,2]
[420933999,1776743447490,-9567.46598948,0.000106,2]
[420934000,1776743447501,-7554.39194273,0.000106,2]
[420934001,1776743447512,-13030.71082776,0.000106,2]
[420934002,1776743447549,-556355.10416495,0.000106,2]
[420934003,1776743447559,-1000.0,0.000106,2]
[420934004,1776743447569,-5000.0,0.000106,2]
[420934005,1776743447578,-152.548071,0.000106,2]
[420934006,1776743447588,-151.0,0.000106,2]
[420934007,1776743447597,-637.0,0.000106,5]
[420934008,1776743447607,-2649.59076973,0.00010651,2]
[420934009,1776743447617,-502.61244998,0.00010673,2]
[420934010,1776743447627,-151.0,0.00010697,2]
[420934011,1776743447636,-500.0,0.00010697,2]
[420934012,1776743447646,-333.67562154,0.00010697,2]
[420934013,1776743447656,-500.0,0.00010697,2]
[420934014,1776743447665,-500.0,0.00010697,2]
[420934015,1776743447675,-500.0,0.00010697,2]
[420934016,1776743447684,-500.0,0.00010697,2]
[420934017,1776743447693,-431.0,0.00010698,5]
[420934018,1776743447703,-38273.4819775,0.00010698,2]
[420934019,1776743447712,-7305.230778,0.00010698,2]
[420934020,1776743447722,-1000.0,0.00010699,2]
[420934021,1776743447731,-96579.13535168,0.000107,2]
[420934022,1776743448064,-688.21421,0.000107,2]
[420934023,1776743448223,-970.0623945,0.000107,2]
[420934024,1776743448330,-290.0,0.000107,2]
[420934025,1776743448341,-6207.19942141,0.000107,2]
[420934084,1776744632349,-154.62,9.286e-05,2]
[420934085,1776744632359,-117.28586894,9.343e-05,2]
[420934086,1776744632401,-382.71413106,9.343e-05,2]
[420934087,1776744632411,-115.28992181,9.397e-05,2]
[420934088,1776744632456,-80.92007819,9.397e-05,2]
[420934089,1776744632467,-5784.39,9.513e-05,2]
[420934090,1776744632476,-496.76,9.607e-05,2]
[420934091,1776744632487,-166.67,9.613e-05,2]
[420934092,1776744632497,-1200.0,9.74e-05,2]
[420934093,1776744632507,-4972.639356,9.742e-05,2]
[420934094,1776744632517,-300.0,9.791e-05,2]
[420934095,1776744632527,-7301.03,9.792e-05,2]
[420934096,1776744632537,-1600.0,9.804e-05,2]
[420934097,1776744632547,-260.0,9.863e-05,2]
[420934098,1776744632557,-861.71,9.879e-05,2]
[420934099,1776744632567,-2087.81409609,0.0001,2]
[420934100,1776744632577,-500.0,0.00010055,2]
[420934101,1776744632586,-238.43487039,0.000101,2]
[420934102,1776744632596,-150.0,0.0001015,2]
[420934103,1776744632606,-500.0,0.00010151,2]
[420934104,1776744632616,-500.0,0.00010151,2]
[420934105,1776744632625,-500.0,0.00010151,2]
[420934106,1776744632635,-500.0,0.00010151,2]
[420934107,1776744632644,-500.0,0.00010151,2]
[420934108,1776744632654,-500.0,0.00010151,2]
[420934109,1776744632663,-500.0,0.00010151,2]
[420934110,1776744632673,-500.0,0.00010151,2]
[420934111,1776744632683,-150.0,0.00010151,2]
[420934112,1776744632693,-500.0,0.00010151,2]
[420934113,1776744632702,-150.0,0.00010151,2]
[420934114,1776744632712,-500.0,0.00010151,2]
[420934115,1776744632721,-157.03954452,0.00010151,2]
[420934117,1776744632731,-500.0,0.00010151,2]
[420934119,1776744632740,-500.0,0.00010151,2]
[420934120,1776744632750,-500.0,0.00010151,2]
[420934121,1776744632759,-500.0,0.00010151,2]
[420934122,1776744632769,-171.9425486,0.00010151,2]
[420934123,1776744632778,-500.0,0.00010151,2]
[420934124,1776744632788,-150.0,0.00010151,2]
[420934125,1776744632798,-150.0,0.00010151,2]
[420934126,1776744632808,-500.0,0.00010151,2]
[420934127,1776744632823,-150.0,0.00010151,2]
[420934128,1776744632832,-500.0,0.00010151,2]
[420934129,1776744632842,-150.0,0.00010151,2]
[420934130,1776744632852,-500.0,0.00010151,2]
[420934131,1776744632861,-153.00071471,0.00010151,2]
[420934132,1776744632871,-500.0,0.00010151,2]
[420934133,1776744632881,-150.0,0.00010151,2]
[420934134,1776744632891,-500.0,0.00010151,2]
[420934135,1776744632901,-500.0,0.00010151,2]
[420934136,1776744632911,-500.0,0.00010151,2]
[420934137,1776744632920,-500.0,0.00010151,2]
[420934138,1776744632930,-500.0,0.00010151,2]
[420934139,1776744632940,-500.0,0.00010151,2]
[420934140,1776744632950,-500.0,0.00010151,2]
[420934141,1776744632959,-500.0,0.00010151,2]
[420934142,1776744632969,-500.0,0.00010151,2]
[420934143,1776744632979,-500.0,0.00010151,2]
[420934144,1776744632988,-500.0,0.00010151,2]
[420934145,1776744632998,-500.0,0.00010151,2]
[420934146,1776744633008,-500.0,0.00010151,2]
[420934147,1776744633017,-500.0,0.00010151,2]
[420934148,1776744633027,-500.0,0.00010151,2]
[420934149,1776744633036,-500.0,0.00010151,2]
[420934150,1776744633046,-500.0,0.00010151,2]
[420934151,1776744633056,-500.0,0.00010151,2]
[420934152,1776744633065,-500.0,0.00010151,2]
[420934153,1776744633075,-500.0,0.00010151,2]
[420934154,1776744633084,-500.0,0.00010151,2]
[420934155,1776744633094,-500.0,0.00010151,2]
[420934156,1776744633104,-500.0,0.00010151,2]
[420934157,1776744633113,-500.0,0.00010151,2]
[420934158,1776744633123,-500.0,0.00010151,2]
[420934159,1776744633132,-500.0,0.00010151,2]
[420934160,1776744633142,-500.0,0.00010151,2]
[420934161,1776744633151,-500.0,0.00010151,2]
[420934162,1776744633161,-500.0,0.00010151,2]
[420934163,1776744633170,-500.0,0.00010151,2]
[420934164,1776744633180,-500.0,0.00010151,2]
[420934165,1776744633190,-501.142069,0.00010151,2]
[420934166,1776744633199,-500.0,0.00010151,2]
[420934167,1776744633209,-500.0,0.00010151,2]
[420934168,1776744633218,-150.0,0.00010151,2]
[420934169,1776744633228,-500.0,0.00010151,2]
[420934170,1776744633237,-500.0,0.00010151,2]
[420934171,1776744633247,-500.0,0.00010151,2]
[420934172,1776744633256,-500.0,0.00010151,2]
[420934173,1776744633266,-500.0,0.00010151,2]
[420934174,1776744633276,-500.0,0.00010151,2]
[420934175,1776744633286,-500.0,0.00010151,2]
[420934176,1776744633296,-500.0,0.00010151,2]
[420934177,1776744633305,-500.0,0.00010151,2]
[420934178,1776744633316,-500.0,0.00010151,2]
[420934179,1776744633325,-500.0,0.00010151,2]
[420934180,1776744633335,-500.0,0.00010151,2]
[420934181,1776744633345,-500.0,0.00010151,2]
[420934182,1776744633355,-500.0,0.00010151,2]
[420934183,1776744633364,-500.0,0.00010151,2]
[420934184,1776744633374,-500.0,0.00010151,2]
[420934185,1776744633383,-500.0,0.00010151,2]
[420934186,1776744633393,-500.0,0.00010151,2]
[420934187,1776744633403,-500.0,0.00010151,2]
[420934188,1776744633413,-360.97181461,0.00010151,2]
[420934189,1776744633423,-237.13619375,0.00010151,2]
[420934190,1776744633432,-500.0,0.00010151,2]
[420934191,1776744633442,-500.0,0.00010151,2]
[420934192,1776744633452,-150.0,0.00010151,2]
[420934193,1776744633461,-445.0,0.00010151,2]
[420934194,1776744633471,-578.20924308,0.00010164,2]
[420934195,1776744633481,-500.0,0.00010164,2]
[420934196,1776744633491,-218.14322329,0.00010164,2]
[420934197,1776744633500,-151.0,0.00010164,2]
[420934198,1776744633510,-206.31207015,0.00010164,2]
[420934199,1776744633519,-181.0801015,0.00010164,2]
[420934200,1776744633529,-350.0,0.00010174,2]
[420934201,1776744633541,-301.92342521,0.00010215,2]
[420934202,1776744633551,-338.5318373,0.00010215,2]
[420934203,1776744633561,-300.0,0.00010215,2]
[420934204,1776744633571,-500.0,0.00010219,2]
[420934205,1776744633580,-151.0,0.00010219,2]
[420934206,1776744633590,-543.37351979,0.00010274,2]
[420934207,1776744633600,-151.0,0.00010274,2]
[420934208,1776744633610,-250.6328223,0.00010316,2]
[420934209,1776744633619,-157.12837852,0.00010329,2]
[420934210,1776744633629,-2500.0,0.00010399,2]
[420934211,1776744633640,-166.67,0.00010406,2]
[420934212,1776744633650,-5310.76,0.00010411,2]
[420934213,1776744633660,-501.0,0.00010411,2]
[420934214,1776744633670,-350.0,0.00010462,2]
[420934215,1776744633679,-611.81980635,0.00010489,2]
[420934216,1776744633689,-201.45445377,0.00010493,2]
[420934217,1776744633699,-721.12765535,0.00010493,2]
[420934218,1776744633709,-1428.38747117,0.00010493,2]
[420934219,1776744633718,-784.61071529,0.00010493,2]
[420934220,1776744633728,-1000.0,0.00010499,2]
[420934221,1776744633738,-379420.2177,0.00010499,2]
[420934222,1776744633747,-25123.6612,0.000105,2]
[420934223,1776744633757,-3670.3254,0.000105,2]
[420934224,1776744633767,-16423.6562,0.000105,2]
[420934225,1776744633777,-5530.0,0.000105,5]
[420934226,1776744633787,-593.78312861,0.00010573,2]
[420934227,1776744633796,-500.0,0.00010573,2]
[420934228,1776744633806,-350.0,0.00010586,2]
[420934229,1776744633815,-200.0,0.00010586,2]
[420934230,1776744633824,-186364.40365382,0.000106,2]
[420934231,1776744633850,-530.93601236,0.000106,2]
[420934232,1776744633869,-2069.58535634,0.000106,2]
[420934233,1776744638609,-615.21547425,0.000106,2]
[420934234,1776744638624,-273.59507904,0.000106,2]
[420934235,1776744638785,-1746.56751119,0.000106,2]
[420934236,1776744638796,-547.52558574,0.000106,2]
[420934237,1776744638808,-6647.10905583,0.000106,2]
[420934238,1776744638843,-258.6,0.000106,2]
[420934239,1776744638854,-383.736,0.000106,2]
[420934367,1776744642285,-1004.82151338,0.000106,2]
[420934368,1776744642318,-24359.67925739,0.000106,2]
[420934369,1776744642329,-14376.88828925,0.000106,2]
[420934380,1776744643621,-657.95135713,0.000106,2]
[420934381,1776744643837,-683.12095,0.000106,2]
[420934382,1776744643892,-546.0,0.000106,2]
[420934383,1776744643903,-373.515,0.000106,2]
[420934406,1776744646485,-1326.64611131,0.000106,2]
[420934413,1776745831630,-340.59739403,9.517e-05,2]
[420934414,1776745831640,-112.63994928,9.524e-05,2]
[420934415,1776745831652,-901.23418243,9.524e-05,2]
[420934416,1776745831664,-486.12586829,9.524e-05,2]
[420934417,1776745831675,-200.0,9.564e-05,2]
[420934418,1776745831684,-165.61,9.594e-05,2]
[420934419,1776745831694,-500.0,9.615e-05,2]
[420934420,1776745831703,-37.35147192,9.651e-05,2]
[420934421,1776745831737,-385.37598275,9.651e-05,2]
[420934422,1776745831749,-895.41,9.651e-05,2]
[420934423,1776745831793,-681.86254533,9.651e-05,2]
[420934424,1776745831803,-1529.03,9.662e-05,2]
[420934425,1776745831812,-1200.0,9.763e-05,2]
[420934426,1776745831822,-1852.42,9.764e-05,2]
[420934427,1776745831832,-300.0,9.786e-05,2]
[420934428,1776745831841,-13909.23,9.788e-05,2]
[420934429,1776745831851,-260.0,9.863e-05,2]
[420934431,1776745831861,-190.50540813,0.00010018,2]
[420934432,1776745831871,-353.11163478,0.00010158,2]
[420934434,1776745831880,-150.0,0.00010298,2]
[420934435,1776745831890,-953.4417,0.000103,2]
[420934436,1776745831899,-2000.0,0.000103,2]
[420934437,1776745831909,-3478.0,0.000103,2]
[420934438,1776745831918,-5000.0,0.00010388,2]
[420934440,1776745831928,-5000.0,0.00010388,2]
[420934442,1776745831938,-5000.0,0.00010388,2]
[420934444,1776745831947,-5000.0,0.00010388,2]
[420934446,1776745831956,-150.0,0.00010411,2]
[420934448,1776745831966,-211.47088108,0.00010411,2]
[420934450,1776745831976,-150.0,0.00010419,2]
[420934453,1776745831986,-500.0,0.0001042,2]
[420934455,1776745831996,-500.0,0.0001042,2]
[420934457,1776745832005,-248.73856104,0.0001042,2]
[420934459,1776745832015,-500.0,0.0001042,2]
[420934461,1776745832026,-150.0,0.0001042,2]
[420934463,1776745832037,-500.0,0.0001042,2]
[420934465,1776745832047,-178.96925187,0.0001042,2]
[420934467,1776745832057,-500.0,0.0001042,2]
[420934469,1776745832068,-500.0,0.0001042,2]
[420934471,1776745832078,-500.0,0.0001042,2]
[420934473,1776745832089,-500.0,0.0001042,2]
[420934475,1776745832099,-500.0,0.0001042,2]
[420934477,1776745832109,-500.0,0.0001042,2]
[420934479,1776745832119,-500.0,0.0001042,2]
[420934481,1776745832129,-500.0,0.0001042,2]
[420934483,1776745832140,-350.0,0.0001042,2]
[420934485,1776745832150,-500.0,0.0001042,2]
[420934487,1776745832159,-150.0,0.0001042,2]
[420934489,1776745832169,-500.0,0.0001042,2]
[420934491,1776745832178,-500.0,0.0001042,2]
[420934493,1776745832187,-500.0,0.0001042,2]
[420934495,1776745832197,-500.0,0.0001042,2]
[420934497,1776745832206,-500.0,0.0001042,2]
[420934499,1776745832216,-500.0,0.0001042,2]
[420934501,1776745832226,-500.0,0.0001042,2]
[420934503,1776745832236,-469.05321645,0.0001042,2]
[420934543,1776745832247,-500.0,0.0001042,2]
[420934544,1776745832803,-500.0,0.0001042,2]
[420934545,1776745832813,-500.0,0.0001042,2]
[420934546,1776745832823,-500.0,0.0001042,2]
[420934547,1776745832833,-500.0,0.0001042,2]
[420934548,1776745832842,-500.0,0.0001042,2]
[420934549,1776745832852,-500.0,0.0001042,2]
[420934550,1776745832861,-500.0,0.0001042,2]
[420934551,1776745832871,-322.58069407,0.0001042,2]
[420934552,1776745832880,-150.0,0.0001042,2]
[420934553,1776745832889,-18879.13336397,0.00010432,2]
[420934554,1776745832902,-688.21599411,0.00010432,2]
[420934555,1776745832914,-719.62920142,0.00010432,2]
[420934556,1776745832930,-2712.58744176,0.00010432,2]
[420934558,1776745838867,-44537.35972161,0.00010432,2]
[420934559,1776745838879,-35716.70777713,0.00010432,2]
[420934560,1776745838888,-2426.1430859,0.00010532,2]
[420934561,1776745838897,-10850.63346664,0.00010532,2]
[420934562,1776745838908,-1826.1386616,0.00010532,2]
[420934563,1776745839810,-6061.57519651,0.00010532,2]
[420934564,1776745840240,-6087.10756133,0.00010532,2]
[420934565,1776745840347,-1029.67326749,0.00010532,2]
[420934570,1776745844327,-416.0,0.00010532,2]
[420934571,1776745844490,-2308.72999553,0.00010532,2]
[420934572,1776745844500,-172.6508192,0.00010532,2]
[420934573,1776745844511,-321.6746251,0.00010532,2]
[420934574,1776745844520,-350.0,0.00010563,2]
[420934575,1776745844529,-150.0,0.00010598,2]
[420934576,1776745844539,-161.63373122,0.000106,2]
[420934577,1776745844548,-185.09472355,0.000106,2]
[420934578,1776745844557,-187.26677544,0.000106,2]
[420934579,1776745844567,-180.93799452,0.000106,2]
[420934580,1776745844577,-1000.0,0.000106,2]
[420934581,1776745844586,-1149.67475869,0.000106,2]
[420934588,1776745845729,-315.52696158,0.000106,2]
[420934589,1776745845741,-370.32589705,0.000106,2]
[420934590,1776745845752,-381.13930652,0.000106,2]
[420934599,1776746474533,-2000.0,9.732e-05,2]
[420934600,1776746474556,-500.0,9.751e-05,3]
[420934601,1776746474579,-564.72,9.768e-05,2]
[420934602,1776746474603,-1600.0,9.832e-05,2]
[420934603,1776746474626,-260.0,9.863e-05,2]
[420934605,1776746491000,-1000.0,0.000102,2]
[420934606,1776746491023,-1000.0,0.000102,3]
[420934607,1776746491046,-1200.0,0.00010299,2]
[420934608,1776746491068,-300.0,0.00010299,2]
[420934609,1776746491092,-6500.0,0.000103,2]
[420934610,1776746496416,-5866.9389,0.000103,2]
[420934611,1776746496439,-150.0,0.00010431,2]
[420934612,1776746496971,-3983.0611,0.00010432,2]
[420934613,1776746520160,-10000.0,0.00010432,2]
[420934614,1776746545633,247.65,8.22e-05,2]
[420934615,1776746571995,-7000.0,0.00010332,2]
[420934616,1776746590338,-3000.0,0.00010332,2]
[420934617,1776746607610,-257.0,0.00010332,2]
[420934618,1776746607636,-3668.4987,0.00010332,2]
[420934619,1776746607659,-150.0,0.00010431,2]
[420934620,1776746607683,-924.5013,0.00010432,2]
[420934622,1776746633636,-10000.0,0.00010432,2]
[420934626,1776746645951,-275.9,9.845e-05,2]
[420934627,1776746645974,-175.63,9.845e-05,2]
[420934628,1776746646001,-9548.47,0.00010432,2]
[420934629,1776746664206,-151.0,0.00010432,3]
[420934630,1776746664232,-9849.0,0.00010432,2]
[420934688,1776746679493,-10000.0,0.00010432,2]
[420935607,1776747033186,-500.0,9.725e-05,2]
[420935608,1776747033196,-260.0,9.863e-05,2]
[420935609,1776747033206,-1200.0,0.00010231,2]
[420935610,1776747033215,-2670.65049985,0.00010232,2]
[420935611,1776747033227,-602.14033715,0.00010232,2]
[420935612,1776747033240,-1110.49415855,0.00010232,2]
[420935614,1776747033256,-737.89658391,0.00010232,2]
[420935615,1776747033268,-747.98398766,0.00010232,2]
[420935616,1776747033299,-255.75980045,0.00010232,2]
[420935617,1776747033311,-739.83242181,0.00010232,2]
[420935633,1776747038051,-168.08,0.00010189,2]
[420935634,1776747038061,-384.85113016,0.00010232,2]
[420935635,1776747038110,-42542.12078046,0.00010232,2]
[420935636,1776747038120,-150.0,0.00010331,2]
[420935637,1776747038130,-500.0,0.00010331,2]
[420935638,1776747038140,-500.0,0.00010331,2]
[420935639,1776747038149,-500.0,0.00010331,2]
[420935640,1776747038160,-507.47291306,0.00010331,2]
[420935641,1776747038170,-500.0,0.00010331,2]
[420935642,1776747038180,-500.0,0.00010331,2]
[420935643,1776747038190,-500.0,0.00010331,2]
[420935644,1776747038200,-500.0,0.00010331,2]
[420935645,1776747038211,-500.0,0.00010331,2]
[420935646,1776747038221,-500.0,0.00010331,2]
[420935647,1776747038230,-500.0,0.00010331,2]
[420935648,1776747038240,-500.0,0.00010331,2]
[420935649,1776747038250,-500.0,0.00010331,2]
[420935650,1776747038260,-500.0,0.00010331,2]
[420935651,1776747038270,-500.0,0.00010331,2]
[420935652,1776747038279,-500.0,0.00010331,2]
[420935653,1776747038289,-500.0,0.00010331,2]
[420935654,1776747038299,-500.0,0.00010331,2]
[420935655,1776747038308,-500.0,0.00010331,2]
[420935656,1776747038317,-500.0,0.00010331,2]
[420935657,1776747038327,-500.0,0.00010331,2]
[420935658,1776747038336,-500.0,0.00010331,2]
[420935659,1776747038346,-500.0,0.00010331,2]
[420935660,1776747038355,-500.0,0.00010331,2]
[420935661,1776747038365,-500.0,0.00010331,2]
[420935662,1776747038374,-500.0,0.00010331,2]
[420935663,1776747038384,-500.0,0.00010331,2]
[420935664,1776747038393,-500.0,0.00010331,2]
[420935665,1776747038403,-500.0,0.00010331,2]
[420935666,1776747038412,-500.0,0.00010331,2]
[420935667,1776747038422,-500.0,0.00010331,2]
[420935668,1776747038431,-500.0,0.00010331,2]
[420935669,1776747038441,-500.0,0.00010331,2]
[420935670,1776747038450,-500.0,0.00010331,2]
[420935671,1776747038460,-500.0,0.00010331,2]
[420935672,1776747038469,-500.0,0.00010331,2]
[420935673,1776747038478,-398.50745652,0.00010331,2]
[420935674,1776747038488,-500.0,0.00010331,2]
[420935675,1776747038499,-500.0,0.00010331,2]
[420935676,1776747038509,-500.0,0.00010331,2]
[420935677,1776747038518,-500.0,0.00010331,2]
[420935678,1776747038528,-500.0,0.00010331,2]
[420935679,1776747038537,-500.0,0.00010331,2]
[420935680,1776747038546,-500.0,0.00010331,2]
[420935681,1776747038556,-500.0,0.00010331,2]
[420935682,1776747038565,-500.0,0.00010331,2]
[420935683,1776747038575,-500.0,0.00010331,2]
[420935684,1776747038584,-500.0,0.00010331,2]
[420935685,1776747038594,-9289.52656603,0.00010332,2]
[420935688,1776747038606,-13276.77655254,0.00010332,2]
[420935690,1776747038617,-1826.1386616,0.00010332,2]
[420935693,1776747038633,-3796.22534557,0.00010332,2]
[420935696,1776747038651,-4992.61308658,0.00010332,2]
[420935698,1776747038664,-318.65679586,0.00010332,2]
[420935701,1776747038682,-2917.5460326,0.00010332,2]
[420935761,1776747040117,-1704.72941926,0.00010332,2]
[420935762,1776747040225,-30803.72663996,0.00010332,2]
[420935763,1776747040234,-13526.3758,0.00010332,2]